Cogmind - Beta 12 @@@ ROGUE MODE // 2023.03.13 @ 17:42:22 // AFD2019/Pay2Buy Player: ArabianSandBoa Result: Destroyed by Y-64 Sentinel with Wave Gun Performance ------------- Evolutions (5) 2500 Regions Visited (24) 4800 Robots Destroyed (151) 755 Value Destroyed (10852) 10852 Prototype IDs (30) 600 Alien Tech Used (0) 0 Bonus (4843) 4843 TOTAL SCORE: 24350 Bonus ------- High Alert Combat Kills 3213 Follower Combat Kills 997 Entered Garrisons 800 Met Data Miner 300 Met Imprinter 300 Was Imprinted 300 Friendly Fire -1067 Cogmind --------- Core Integrity 0/1000 Matter 285/300 Energy 111/170 System Corruption 23% Temperature Cool (9) Movement Flying (35) Location -5/Factory Parts ------- > --- POWER (2) -------- Makeshift Power Source > --- PROPULSION (6) --- Improved Cesium-ion Thruster > --- UTILITY (7) ------ Targeting Computer > --- WEAPON (2) ------- 1C-UTU's Sword "Choppy" > --- INVENTORY (10) --- Recoil Nullifier Hacking Drone Bay (1/1) Tesla Rifle Magnetic Acceleration Cannon Magnetic Acceleration Cannon Peak State ------------ > --- POWER ------------ Angular Momentum Engine > --- PROPULSION ------- Spiked Heavy Treads Spiked Heavy Treads Spiked Heavy Treads > --- UTILITY ---------- Targeting Computer Experimental Targeting Computer Advanced Melee Analysis Suite Improved Powered Armor Improved Powered Armor Z-Drone Bay > --- WEAPON ----------- Cooled Phase Gun Hypervelocity Mass Driver > --- INVENTORY -------- Improved Cesium-ion Thruster Recoil Nullifier Hacking Drone Bay Tesla Rifle Magnetic Acceleration Cannon Magnetic Acceleration Cannon 1C-UTU's Sword "Choppy" [Rating: 96] Favorites ----------- Power F-cell Engine Engine F-cell Engine Power Core Nuclear Core Reactor Cold Fusion Reactor Propulsion Improved VTOL Module Treads Spiked Heavy Treads Wheel Armored Huge Wheel Hover Unit Antigrav System Flight Unit Improved VTOL Module Utility Advanced Melee Analysis Suite Device Advanced Sensor Array Processor Advanced Melee Analysis Suite Hackware Improved System Shield Protection Improved Propulsion Shielding Weapon 1C-UTU's Sword "Choppy" Energy Gun Cooled Phase Gun Energy Cannon Improved EM Pulse Cannon Ballistic Gun Enhanced Coil Gun Ballistic Cannon Hypervelocity Mass Driver Launcher Precision Grenade Launcher Impact Weapon Flail Slashing Weapon 1C-UTU's Sword "Choppy" Piercing Weapon Makeshift Spear Build | -11 -10 -9 -9 -8 -8 -7 -7 -7 -7 -7 -7 -6 -6 -6 -6 -6 -6 -6 -6 -6 -5 -5 -5 -5 ------- Run | Jun Mat Mat Min Mat Gar Fac Gar Fac Low Low Dat Pro Fac Was Fac Gar Fac Low Low Zio Pro Fac Gar Fac Slots Evolved 10 | . . 2 . 2 . 2 . . . . . . 2 . . . . . . . . 2 . . Power 1 | . . . . . . . . . . . . . . . . . . . . . . 1 . . Propulsion 4 | . . 2 . 1 . 1 . . . . . . . . . . . . . . . . . . Utility 5 | . . . . 1 . 1 . . . . . . 2 . . . . . . . . 1 . . Weapon . | . . . . . . . . . . . . . . . . . . . . . . . . . Parts Attached 73 | . 7 . . 2 2 . 1 3 6 3 3 1 6 . 1 5 1 . . . 2 5 6 19 Power 2 | . . . . . . . . 1 . . . . . . . . . . . . . . . 1 Engine 2 | . . . . . . . . 1 . . . . . . . . . . . . . . . 1 Core . | . . . . . . . . . . . . . . . . . . . . . . . . . Reactor . | . . . . . . . . . . . . . . . . . . . . . . . . . Propulsion 7 | . . . . . . . . 2 . . . . . . . . . . . . . . 1 4 Treads 1 | . . . . . . . . . . . . . . . . . . . . . . . . 1 Leg . | . . . . . . . . . . . . . . . . . . . . . . . . . Wheel 1 | . . . . . . . . . . . . . . . . . . . . . . . 1 . Hover . | . . . . . . . . . . . . . . . . . . . . . . . . . Flight 5 | . . . . . . . . 2 . . . . . . . . . . . . . . . 3 Utility 23 | . . . . 1 1 . . . 4 1 2 . 3 . 1 4 . . . . . . 2 4 Device 17 | . . . . 1 . . . . 4 1 1 . 2 . 1 2 . . . . . . 2 3 Storage . | . . . . . . . . . . . . . . . . . . . . . . . . . Processor . | . . . . . . . . . . . . . . . . . . . . . . . . . Hackware . | . . . . . . . . . . . . . . . . . . . . . . . . . Protection 6 | . . . . . 1 . . . . . 1 . 1 . . 2 . . . . . . . 1 Artifact . | . . . . . . . . . . . . . . . . . . . . . . . . . Weapon 41 | . 7 . . 1 1 . 1 . 2 2 1 1 3 . . 1 1 . . . 2 5 3 10 Energy Gun 6 | . . . . . . . . . . . . . . . . . . . . . . 3 . 3 Energy Cannon . | . . . . . . . . . . . . . . . . . . . . . . . . . Ballistic Gun 1 | . . . . . . . . . . . . . . . . . . . . . . . . 1 Ballistic Cannon 9 | . . . . . . . . . . . . 1 1 . . 1 . . . . 1 1 2 2 Launcher 8 | . 3 . . 1 . . 1 . . 1 . . 1 . . . . . . . . . 1 . Special Weapon . | . . . . . . . . . . . . . . . . . . . . . . . . . Impact Weapon 4 | . 4 . . . . . . . . . . . . . . . . . . . . . . . Slashing Weapon 12 | . . . . . . . . . 2 1 1 . 1 . . . 1 . . . 1 1 . 4 Piercing Weapon 1 | . . . . . 1 . . . . . . . . . . . . . . . . . . . Special Melee Weapon . | . . . . . . . . . . . . . . . . . . . . . . . . . Unidentified Prototypes 2 | . . . . 1 . . . . . . . . . . . . . . . . . . . 1 Parts Lost 66 | . 1 1 . . 1 . 9 . 2 4 . 1 . 3 3 11 . 2 . . 2 5 12 9 Power 11 | . . 1 . . 1 . 1 . . 1 . . . . 1 2 . 1 . . . 1 1 1 Propulsion 23 | . . . . . . . 5 . . 2 . . . . 2 3 . . . . 2 2 4 3 Utility 19 | . . . . . . . 1 . 2 1 . . . 2 . 5 . . . . . 2 3 3 Weapon 13 | . 1 . . . . . 2 . . . . 1 . 1 . 1 . 1 . . . . 4 2 Highest Loss Streak 8 | . 1 1 . . 1 . 6 . 2 4 . 1 . 3 2 8 . 2 . . 2 3 5 8 To Critical Strikes 1 | . . . . . . . . . . . . . . . . . . . . . . . 1 . Average Slot Usage (%) 71 | . 26 73 81 87 92 98 92 84 86 66 76 71 82 76 87 77 77 87 86 86 73 63 41 53 Engine 2 | . . 8 4 9 7 . . 7 7 . . . . . . 3 6 5 6 6 6 3 . 1 Core 1 | . . . . . . . . . . 2 7 7 6 6 6 1 . . . . . . . . Treads 1 | . . . . . . . . . . . . . . . . . . . . . . . . 8 Flight 23 | . . 35 44 36 39 45 40 38 38 31 30 30 26 26 31 32 26 31 33 33 20 19 2 . Device 4 | . . . . 9 . . 1 7 7 7 11 12 16 6 4 2 6 6 6 6 6 3 . 10 Processor 15 | . . . . . . . 10 15 20 7 7 7 9 13 13 22 26 33 33 33 33 29 24 16 Hackware 5 | . . 18 22 18 18 30 17 7 . . . . . . 11 3 . . . . . . . . Protection 2 | . . . . . 8 . . . . . 3 4 9 13 7 3 . . . . . . . . Ballistic Cannon 1 | . . . . . . . . . . . . 2 1 . . 3 . . . . . 1 4 1 Launcher 1 | . 12 . . 6 6 7 2 . . . . . 4 3 . . . . . . . . . . Impact Weapon 1 | . 13 11 11 9 2 . . . . . . . . . . . . . . . . . . . Slashing Weapon 3 | . . . . . . . 3 7 10 14 15 4 5 6 6 1 6 6 6 6 6 3 . 2 Piercing Weapon 1 | . . . . . 9 7 5 . . . . . . . . . . . . . . . . . Naked Turns 12 | . 12 . . . . . . . . . . . . . . . . . . . . . . . Heaviest Build 59 | . 3 7 7 12 15 20 20 16 19 23 18 27 24 21 25 29 20 20 15 15 15 28 22 59 Greatest Support 225 | 3 3 20 20 20 25 30 34 29 29 34 23 32 23 23 36 36 26 31 23 23 23 41 44 225 Greatest Overweight (x) 7 | . . . . . . . . . 1 . . . 1 . . . . . . . . 1 7 1 Average Overweight (x) . | . . . . . . . . . . . . . . . . . . . . . . . . . Largest Inventory Capacity 10 | . 10 10 10 10 10 10 10 10 10 10 10 10 10 10 10 10 10 10 10 10 10 10 10 10 Average Capacity 10 | . 10 10 10 10 10 10 10 10 10 10 10 10 10 10 10 10 10 10 10 10 10 10 10 10 Most Carried 10 | . 2 2 5 4 5 7 7 7 10 10 9 10 9 7 9 9 7 7 7 8 9 10 10 10 Average Carried 6 | . . 1 4 3 4 6 6 7 8 9 8 7 6 7 7 5 6 6 7 7 7 8 7 6 Final Capacity 10 | 10 10 10 10 10 10 10 10 10 10 10 10 10 10 10 10 10 10 10 10 10 10 10 10 10 Final Carried 10 | . . 2 5 3 5 7 7 7 10 9 7 9 7 7 9 7 6 7 7 8 8 9 6 5 Class Distribution -------------------- 36% | Sprinter 32% | Mutant 30% | Hacker-Sprinter Dominant Class ---------------- Mutant | -10/Materials Hacker-Sprinter | -9/Materials Hacker-Sprinter | -9/Mines Hacker-Sprinter | -8/Materials Hacker-Sprinter | -8/Garrison Hacker-Sprinter | -7/Factory Hacker-Sprinter | -7/Garrison Sprinter | -7/Factory Sprinter | -7/Lower Caves Sprinter | -7/Lower Caves Sprinter | -7/Data Miner Sprinter | -6/Proximity Caves Sprinter | -6/Factory Sprinter | -6/Waste Hacker-Sprinter | -6/Factory Sprinter | -6/Garrison Sprinter | -6/Factory Sprinter | -6/Lower Caves Sprinter | -6/Lower Caves Sprinter | -6/Zion Sprinter | -5/Proximity Caves Sprinter | -5/Factory Mutant | -5/Garrison Mutant | -5/Factory Resources | -11 -10 -9 -9 -8 -8 -7 -7 -7 -7 -7 -7 -6 -6 -6 -6 -6 -6 -6 -6 -6 -5 -5 -5 -5 ----------- Run | Jun Mat Mat Min Mat Gar Fac Gar Fac Low Low Dat Pro Fac Was Fac Gar Fac Low Low Zio Pro Fac Gar Fac Matter Collected 3501 | . 217 45 120 . 310 59 340 . . 118 . 25 142 96 4 358 . 37 . . 28 19 787 796 Remotely 200 | . . . . . . . . . . . . . . . . . . . . . . . . 200 Salvage Created 5417 | . 245 66 120 15 198 475 329 26 . 147 . 42 142 . 581 536 56 311 . . 60 185 932 951 Parts . | . . . . . . . . . . . . . . . . . . . . . . . . . Haulers Intercepted 3 | . 1 . . . . . . . . . . . . . 1 . . . . . . 1 . . Recyclers Shooed . | . . . . . . . . . . . . . . . . . . . . . . . . . Parts Field Recycled . | . . . . . . . . . . . . . . . . . . . . . . . . . Retrieved Matter . | . . . . . . . . . . . . . . . . . . . . . . . . . Parts Self-Destructed . | . . . . . . . . . . . . . . . . . . . . . . . . . Prevented . | . . . . . . . . . . . . . . . . . . . . . . . . . Kills | -11 -10 -9 -9 -8 -8 -7 -7 -7 -7 -7 -7 -6 -6 -6 -6 -6 -6 -6 -6 -6 -5 -5 -5 -5 ------- Run | Jun Mat Mat Min Mat Gar Fac Gar Fac Low Low Dat Pro Fac Was Fac Gar Fac Low Low Zio Pro Fac Gar Fac Combat Hostiles Destroyed 100 | . 12 . . . 8 5 11 . . 2 . 1 . . 3 15 1 1 . . 1 3 22 15 Melee 21 | . . . . . 1 . 5 . . 2 . 1 . . 2 4 . 1 . . 1 1 3 . Guns 12 | . . . . . . . . . . . . . . . . . . . . . . . 4 8 Cannons 32 | . . . . . . . . . . . . . . . . 11 . . . . . 2 12 7 AOE 33 | . 10 . . . 7 5 6 . . . . . . . 1 . 1 . . . . . 3 . Classes Destroyed 15 | . 6 1 . . 1 2 2 . . . . . . . . 3 . . . . . . . . Worker 14 | . 1 . 1 . . 4 . . . . . . . . 7 . . . . . . . . 1 Builder 7 | . 1 . . . . . . . . . . . 1 . 3 . . . . . . . . 2 Tunneler 2 | . . . . . . 1 . . . . . . . . . . . . . . . . . 1 Hauler 3 | . 1 . . . . . . . . . . . . . 1 . . . . . . 1 . . Recycler 4 | . . . . . . 2 . . . . . . 1 . 1 . . . . . . . . . Operator 8 | . 1 . . 1 . 1 . . . . . . . . 2 . . . . . . 2 . 1 Watcher 12 | . . 3 . . . . . 1 . . . . . . 2 . . . . . . 1 1 4 Swarmer 31 | . 6 . . . 3 3 5 . . 2 . . . . . 3 . . . . . 1 5 3 Grunt 37 | . 6 . . . 4 2 2 . . . . . . . 1 7 . 1 . . . . 11 3 Brawler 2 | . . . . . . . . . . . . . . . . 2 . . . . . . . . Duelist 3 | . . . . . . . 2 . . . . . . . . . . . . . . . . 1 Sentry 4 | . . . . . . . . . . . . . . . . 2 . . . . . . . 2 Specialist 1 | . . . . . . . 1 . . . . . . . . . . . . . . . . . Hunter 8 | . . . . . . . . . . . . . . . . 1 1 . . . . . 4 2 Programmer 14 | . . . . . 1 . 1 . . . . 1 . . 2 . . . . . 1 2 2 4 Packrat 1 | . . . . . . . . . . 1 . . . . . . . . . . . . . . Best Kill Streak 13 | . 8 2 1 1 4 4 6 1 . 1 . 1 1 . 7 13 1 1 . . 1 4 5 9 Combat Bots Only 13 | . 8 . . . 4 3 6 . . 1 . 1 . . 1 13 1 1 . . 1 2 5 5 Max Kills in Single Turn 3 | . 3 1 1 1 3 2 2 1 . 1 . 1 1 . 3 1 1 1 . . 1 2 2 1 Gunslinging . | . . . . . . . . . . . . . . . . . . . . . . . . . Exploded 3 | . 3 . . . 3 2 2 . . . . . . . 1 . 1 . . . . . 1 . Melee 1 | . . . . . 1 . 1 . . 1 . 1 . . 1 1 . 1 . . 1 1 1 . Uniques/NPCs Destroyed 1 | . . . . . . 1 . . . . . . . . . . . . . . . . . . HV-R5K (-7/Factory) Combat | -11 -10 -9 -9 -8 -8 -7 -7 -7 -7 -7 -7 -6 -6 -6 -6 -6 -6 -6 -6 -6 -5 -5 -5 -5 -------- Run | Jun Mat Mat Min Mat Gar Fac Gar Fac Low Low Dat Pro Fac Was Fac Gar Fac Low Low Zio Pro Fac Gar Fac Damage Taken 11586 | . 233 144 25 19 277 86 1034 24 93 263 . 181 47 118 442 1355 56 150 37 . 281 640 1669 4412 Core 2589 | . 156 49 16 . 75 . 511 18 11 112 . 26 . 34 135 289 . 32 23 . 92 234 469 307 Absorbed by Shields 7 | . . . . . . . . . . . . . . . . . . . . . . . . 7 Reduced by Siege Mode 623 | . . . . . . . . . . . . . . . . . . . . . . . . 623 Redirected to Shielding 266 | . . . . . 80 . . . . . . 18 3 . 29 136 . . . . . . . . Core Remaining (%) 56 | 100 37 . 83 . 86 . . . . . . 3 . . . . . . . . 28 . . . Volleys Fired 405 | . 21 . . 4 11 23 10 . . 3 . 10 13 . 37 40 8 . . . 1 35 102 87 Largest 2 | . 1 . . 1 1 1 1 . . 1 . 1 1 . 1 1 1 . . . 1 1 2 2 Hottest 92 | . 30 . . 33 36 36 36 . . 36 . 60 61 . 69 60 65 . . . 60 65 91 92 Shots Fired 469 | . 21 . . 4 11 23 10 . . 3 . 10 13 . 37 40 8 1 . . 1 35 120 132 Gun 145 | . . . . . . . . . . . . . . . . . 8 1 . . . 16 38 82 Cannon 244 | . . . . . . . . . . . . 10 10 . 37 40 . . . . 1 19 77 50 Launcher 80 | . 21 . . 4 11 23 10 . . 3 . . 3 . . . . . . . . . 5 . Special . | . . . . . . . . . . . . . . . . . . . . . . . . . Kinetic 241 | . . . . . . . . . . . . 10 10 . . 40 . . . . 1 19 111 50 Thermal 72 | . . . . . . . . . . . . . . . . . . . . . . . 4 68 Explosive 74 | . 21 . . 4 11 23 10 . . . . . . . . . . . . . . . 5 . Electromagnetic 82 | . . . . . . . . . . 3 . . 3 . 37 . 8 1 . . . 16 . 14 Robot Hit Streak 32 | . 3 . . 4 5 5 . . . 1 . 4 . . 1 28 . . . . . 17 32 30 Robot Miss Streak 4 | . 2 . . . 1 . 1 . . 2 . 2 . . . 4 . . . . . 2 1 2 Penetration Max 1 | . . . . . . . . . . . . . . . . . . . . . . . 1 1 Secondary Targets . | . . . . . . . . . . . . . . . . . . . . . . . . . Shots Hit Robots 347 | . 14 3 7 2 9 4 36 2 . 4 . 12 2 . 12 32 . 15 . . 2 11 87 93 Core Hits 234 | . 14 1 1 2 13 19 16 1 . 4 . 3 . . 33 26 1 2 . . 1 9 51 37 Critical Kills 22 | . . . 1 . . . . . . . . . . . 1 3 . 1 . . . . 11 5 Critical Parts Destroyed 46 | . 2 1 2 . . . . . . 1 . . . . 2 1 . 2 . . . 1 21 13 Critical Strikes 83 | . 2 1 3 . . 1 2 . . 1 . . . . 3 4 . 3 . . . 1 38 24 Burn 5 | . . . . . . . . . . . . . . . . . . . . . . . . 5 Destroy 69 | . . . . . . . . . . 1 . . . . 3 4 . 3 . . . 1 38 19 Smash 6 | . 2 1 3 . . . . . . . . . . . . . . . . . . . . . Impale 3 | . . . . . . 1 2 . . . . . . . . . . . . . . . . . Melee Attacks 586 | . 31 26 7 15 42 41 73 16 7 4 . 12 47 1 106 23 5 19 3 1 18 37 21 31 Impact 86 | . 31 26 7 15 7 . . . . . . . . . . . . . . . . . . . Slashing 396 | . . . . . . . 45 16 7 4 . 12 47 1 106 23 5 19 3 1 18 37 21 31 Piercing 104 | . . . . . 35 41 28 . . . . . . . . . . . . . . . . . Sneak Attacks 15 | . 2 . 1 . . 2 2 . . 2 . . 2 . . . . . . . 1 1 . 2 Combat Hostiles 4 | . . . . . . . 2 . . 1 . . . . . . . . . . 1 . . . Follow-up Attacks 6 | . . . . . . . 6 . . . . . . . . . . . . . . . . . Damage Inflicted 21967 | . 1300 161 491 72 719 1320 2351 96 . 399 . 652 292 . 2935 2061 87 1340 . . 177 1503 3139 2872 Guns 2004 | . . . . . . . . . . . . . . . . . . . . . . . 507 1497 Cannons 4732 | . . . . . . . . . . . . 378 . . 32 1666 . . . . . 520 1074 1062 Explosions 7274 | . 812 . . 53 564 1191 962 . . 80 . . . . 2018 . 87 . . . . 611 896 . Melee 7957 | . 488 161 491 19 155 129 1389 96 . 319 . 274 292 . 885 395 . 1340 . . 177 372 662 313 Ramming . | . . . . . . . . . . . . . . . . . . . . . . . . . Kinetic 5207 | . . . . . . . . . . . . 378 . . . 1666 . . . . . 520 1581 1062 Thermal 2924 | . . . . . . 369 . . . . . . . . 1185 . 87 . . . . . . 1283 Explosive 5041 | . 812 . . 53 564 789 962 . . . . . . . 354 . . . . . . 611 896 . Electromagnetic 838 | . . . . . . 33 . . . 80 . . . . 511 . . . . . . . . 214 Impact 1159 | . 488 161 491 19 . . . . . . . . . . . . . . . . . . . . Slashing 6089 | . . . . . . . 964 96 . 319 . 274 292 . 885 395 . 1340 . . 177 372 662 313 Piercing 709 | . . . . . 155 129 425 . . . . . . . . . . . . . . . . . Highest Corruption 23 | . . . . . . . . . 8 8 8 8 . . 2 2 2 2 2 2 . 2 3 23 Average Corruption 4 | . . . . . . . . . 8 8 8 8 . . 1 2 2 2 2 2 . 1 2 6 Corruption Purged . | . . . . . . . . . . . . . . . . . . . . . . . . . Corruption Blocked . | . . . . . . . . . . . . . . . . . . . . . . . . . Effects 66 | . . . . . . . . . 2 5 . 4 . . 2 3 1 4 2 1 . 1 9 32 Message Errors 17 | . . . . . . . . . . 3 . 1 . . . 1 . . 1 1 . . 4 6 Matter Fused 17 | . . . . . . . . . . 1 . 1 . . 1 2 . 2 . . . . 2 8 Heat Flow Errors 5 | . . . . . . . . . 1 . . . . . . . . . . . . . . 4 Energy Discharges 8 | . . . . . . . . . 1 1 . . . . 1 . . 1 . . . 1 . 3 Parts Rejected 2 | . . . . . . . . . . . . . . . . . . . . . . . 1 1 Data Loss (minor) 4 | . . . . . . . . . . . . 1 . . . . . . . . . . 1 2 Data Loss (major) 3 | . . . . . . . . . . . . 1 . . . . 1 . 1 . . . . . Misfires 2 | . . . . . . . . . . . . . . . . . . 1 . . . . . 1 Alerts 1 | . . . . . . . . . . . . . . . . . . . . . . . . 1 Misdirections 4 | . . . . . . . . . . . . . . . . . . . . . . . . 4 Weapon Failures 3 | . . . . . . . . . . . . . . . . . . . . . . . 1 2 Overload Shots 2 | . . . . . . . . . . . . . . . . . . . . . . . . 2 Effects 1 | . . . . . . . . . . . . . . . . . . . . . . . . 1 Energy Bleed 1 | . . . . . . . . . . . . . . . . . . . . . . . . 1 Overflow Damage 2914 | . 221 88 197 28 . 103 104 31 . 114 . 79 232 . 737 20 . 541 . . . 278 6 135 Projectiles 91 | . . . . . . . . . . . . . . . . 20 . . . . . 45 . 26 Explosions 540 | . 51 . . 19 . 4 61 . . 9 . . . . 371 . . . . . . 19 6 . Melee 2283 | . 170 88 197 9 . 99 43 31 . 105 . 79 232 . 366 . . 541 . . . 214 . 109 Knockbacks 31 | . 1 1 2 . . . . . . . . . . . . 3 . . . . . 5 8 11 Impact 4 | . 1 1 2 . . . . . . . . . . . . . . . . . . . . . Kinetic 25 | . . . . . . . . . . . . . . . . 3 . . . . . 5 8 9 Secondary 2 | . . . . . . . . . . . . . . . . . . . . . . . . 2 Self-Inflicted Damage 491 | . 113 . . 19 38 . 36 . . 88 . . . . . . 56 . . . . 141 . . Shots 12 | . 3 . . 1 1 . 1 . . 2 . . . . . . 1 . . . . 3 . . Rammed . | . . . . . . . . . . . . . . . . . . . . . . . . . Targets Rammed . | . . . . . . . . . . . . . . . . . . . . . . . . . Kicked . | . . . . . . . . . . . . . . . . . . . . . . . . . Crushed . | . . . . . . . . . . . . . . . . . . . . . . . . . Highest Temperature 267 | . 5 4 2 . 35 18 22 . 151 45 . 123 10 . 175 152 54 44 . . 8 32 2 267 Average Temperature 38 | . 5 2 2 . 13 2 4 . 148 24 . 40 4 . 41 55 25 22 . . 6 11 1 82 Received Heat Transfer 1509 | . 60 36 . . 72 9 162 6 18 . . 21 15 . 27 309 . 36 . . 9 81 177 471 Siege Activations 4 | . . . . . . . . . . . . . . . . . . . . . . . . 4 Total Turns 141 | . . . . . . . . . . . . . . . . . . . . . . . . 141 Longest Duration 60 | . . . . . . . . . . . . . . . . . . . . . . . . 60 Robots Corrupted . | . . . . . . . . . . . . . . . . . . . . . . . . . Combat Hostiles . | . . . . . . . . . . . . . . . . . . . . . . . . . Parts Fried . | . . . . . . . . . . . . . . . . . . . . . . . . . Impact Corruptions 16 | . 7 5 3 1 . . . . . . . . . . . . . . . . . . . . Robots Melted . | . . . . . . . . . . . . . . . . . . . . . . . . . Combat Hostiles . | . . . . . . . . . . . . . . . . . . . . . . . . . Parts Melted . | . . . . . . . . . . . . . . . . . . . . . . . . . Heat Transferred 2754 | . . . . . . 174 . . . . . . . . 750 . 50 . . . . . . 1780 Parts Sabotaged 6 | . . . . . . . . . . . . . . . . . . . . . . . . 6 Parts Stolen . | . . . . . . . . . . . . . . . . . . . . . . . . . Parts Stripped . | . . . . . . . . . . . . . . . . . . . . . . . . . Power Chain Reactions 1 | . . . . . . . . . . 1 . . . . . . . . . . . . . . Missiles Intercepted . | . . . . . . . . . . . . . . . . . . . . . . . . . Alert | -11 -10 -9 -9 -8 -8 -7 -7 -7 -7 -7 -7 -6 -6 -6 -6 -6 -6 -6 -6 -6 -5 -5 -5 -5 ------- Run | Jun Mat Mat Min Mat Gar Fac Gar Fac Low Low Dat Pro Fac Was Fac Gar Fac Low Low Zio Pro Fac Gar Fac Peak Influence 2639 | . 775 561 87 244 1539 2125 2466 1470 . . . . 632 236 2398 2639 1881 . . . . 1561 1713 1598 Initial 1685 | . . 326 67 33 158 807 1498 1294 . . . . 103 221 118 1685 1385 . . . . 229 1024 898 Average 1116 | . 449 335 78 102 927 1366 2018 1394 . . . . 295 211 1187 2244 1551 . . . . 1054 1423 1118 Maximum Alert Level 5 | . 3 2 . 1 4 5 5 4 . . . . 2 1 5 5 5 . . . . 4 5 4 Low Security (%) 9 | . 24 29 100 86 3 . . . . . . . 36 9 3 . . . . . . . . . Level 1 7 | . 8 16 . 13 12 . . . . . . . 35 90 11 . . . . . . 6 . . Level 2 11 | . 45 53 . . 16 . . . . . . . 27 . 19 . . . . . . 22 . . Level 3 20 | . 20 . . . 30 41 . . . . . . . . 11 . . . . . . 14 12 51 Level 4 30 | . . . . . 37 28 7 100 . . . . . . 20 . 59 . . . . 56 61 48 Level 5 20 | . . . . . . 29 92 . . . . . . . 33 100 40 . . . . . 26 . High Security . | . . . . . . . . . . . . . . . . . . . . . . . . . Max Security . | . . . . . . . . . . . . . . . . . . . . . . . . . Squads Dispatched 37 | . 2 1 . . . 7 . 1 . . . . 1 . 12 . 2 . . . 1 4 . 6 Investigation 14 | . 2 1 . . . 1 . . . . . . . . 6 . 1 . . . . 3 . . Extermination 3 | . . . . . . . . . . . . . . . 1 . . . . . . 1 . 1 Reinforcement 11 | . . . . . . 3 . 1 . . . . 1 . 3 . . . . . . . . 3 Assault 6 | . . . . . . . . . . . . . . . 2 . 1 . . . 1 . . 2 Garrison 3 | . . . . . . 3 . . . . . . . . . . . . . . . . . . Intercept . | . . . . . . . . . . . . . . . . . . . . . . . . . Searches Triggered . | . . . . . . . . . . . . . . . . . . . . . . . . . Data Miner Redirects 8 | . . . . . . . . . . . . . . . 2 . . . . . . 2 . 4 Construction Impeded 2 | . . . . . . 1 . . . . . . . . 1 . . . . . . . . . Haulers Reinforced . | . . . . . . . . . . . . . . . . . . . . . . . . . Active Scanning Responses . | . . . . . . . . . . . . . . . . . . . . . . . . . Cargo Convoy Interrupts 1 | . . . . . . . . . . . . . . . . . . . . . . . . 1 Stealth | -11 -10 -9 -9 -8 -8 -7 -7 -7 -7 -7 -7 -6 -6 -6 -6 -6 -6 -6 -6 -6 -5 -5 -5 -5 --------- Run | Jun Mat Mat Min Mat Gar Fac Gar Fac Low Low Dat Pro Fac Was Fac Gar Fac Low Low Zio Pro Fac Gar Fac Distress Signals 10 | . . 3 . . . . . . . . . . . . . . . . . . 1 2 . 4 Communications Jammed . | . . . . . . . . . . . . . . . . . . . . . . . . . Distress Signals . | . . . . . . . . . . . . . . . . . . . . . . . . . Times Spotted 359 | . 16 26 6 2 23 10 28 5 4 5 . 6 8 6 31 43 . 5 5 . 32 26 29 43 Peak Tracking Total 14 | . 3 14 6 2 6 4 9 4 2 4 . 5 6 5 9 14 . 3 4 . 14 11 6 14 Tactical Retreats 63 | . . 3 . . 2 1 5 . 2 2 . 3 2 . 10 7 . 2 1 . 8 4 4 7 Traps | -11 -10 -9 -9 -8 -8 -7 -7 -7 -7 -7 -7 -6 -6 -6 -6 -6 -6 -6 -6 -6 -5 -5 -5 -5 ------- Run | Jun Mat Mat Min Mat Gar Fac Gar Fac Low Low Dat Pro Fac Was Fac Gar Fac Low Low Zio Pro Fac Gar Fac Traps Triggered 24 | . 4 . . . 2 . 4 1 . . . . 1 . 1 5 1 . . . . . 3 2 Indirectly 1 | . . . . . . . . . . . . . . . 1 . . . . . . . . . Trap Hack Attempts . | . . . . . . . . . . . . . . . . . . . . . . . . . Triggered . | . . . . . . . . . . . . . . . . . . . . . . . . . Disarmed . | . . . . . . . . . . . . . . . . . . . . . . . . . Reprogrammed . | . . . . . . . . . . . . . . . . . . . . . . . . . Reused . | . . . . . . . . . . . . . . . . . . . . . . . . . Traps Extracted . | . . . . . . . . . . . . . . . . . . . . . . . . . Installed . | . . . . . . . . . . . . . . . . . . . . . . . . . Triggered 6 | . . . . . . . . . 4 . . 1 . . . . . 1 . . . . . . Machines | -11 -10 -9 -9 -8 -8 -7 -7 -7 -7 -7 -7 -6 -6 -6 -6 -6 -6 -6 -6 -6 -5 -5 -5 -5 ---------- Run | Jun Mat Mat Min Mat Gar Fac Gar Fac Low Low Dat Pro Fac Was Fac Gar Fac Low Low Zio Pro Fac Gar Fac Machines Disabled 310 | . 18 5 . 6 10 57 7 8 1 . . . 24 . 92 7 12 . . . 1 33 3 26 Max in Single Turn 8 | . 1 1 . 2 1 8 1 1 1 . . . 3 . 6 2 4 . . . 1 5 1 2 Garrison Access 1 | . . . . . . . . . . . . . . . . . 1 . . . . . . . Garrison Relay 13 | . . . . . 4 . 4 . . . . . . . . 3 . . . . . . 2 . Phase Generator 1 | . . . . . . . . . . . . . . . . 1 . . . . . . . . Machines Repaired 1 | . . 1 . . . . . . . . . . . . . . . . . . . . . . Machines Sabotaged . | . . . . . . . . . . . . . . . . . . . . . . . . . Overloaded Fab Kills . | . . . . . . . . . . . . . . . . . . . . . . . . . Hacking | -11 -10 -9 -9 -8 -8 -7 -7 -7 -7 -7 -7 -6 -6 -6 -6 -6 -6 -6 -6 -6 -5 -5 -5 -5 --------- Run | Jun Mat Mat Min Mat Gar Fac Gar Fac Low Low Dat Pro Fac Was Fac Gar Fac Low Low Zio Pro Fac Gar Fac Machines Accessed 55 | . 5 4 1 3 3 7 2 3 2 . 4 . 2 . 10 1 1 3 . . 1 3 . . Terminals 34 | . 5 4 . 2 3 5 2 2 1 . . . 2 . 5 1 . 1 . . 1 . . . Fabricators . | . . . . . . . . . . . . . . . . . . . . . . . . . Repair Stations . | . . . . . . . . . . . . . . . . . . . . . . . . . Recycling Units . | . . . . . . . . . . . . . . . . . . . . . . . . . Scanalyzers 8 | . . . . . . 1 . 1 . . . . . . 3 . 1 . . . . 2 . . Garrison Access 5 | . . . . 1 . 1 . . . . . . . . 2 . . . . . . 1 . . Total Hacks 157 | . 14 18 1 6 6 18 9 6 5 . 30 . 2 . 27 2 1 6 . . 2 4 . . Successful 104 | . 6 12 1 3 4 11 5 1 5 . 30 . . . 15 . 1 6 . . 1 3 . . Failed 52 | . 8 5 . 3 2 7 4 5 . . . . 2 . 12 2 . . . . 1 1 . . Catastrophic 10 | . . 1 . . . 2 . 1 . . . . 2 . 3 1 . . . . . . . . Database Lockouts 1 | . . 1 . . . . . . . . . . . . . . . . . . . . . . Manual 67 | . 10 7 . 3 1 3 7 4 . . . . . . 6 . 1 . . . 1 10 3 11 Terminals 100 | . 14 18 . 5 6 16 9 2 4 . . . 2 . 19 2 . 1 . . 2 . . . Fabricators . | . . . . . . . . . . . . . . . . . . . . . . . . . Repair Stations . | . . . . . . . . . . . . . . . . . . . . . . . . . Recycling Units . | . . . . . . . . . . . . . . . . . . . . . . . . . Scanalyzers 11 | . . . . . . 1 . 4 . . . . . . 3 . 1 . . . . 2 . . Garrison Access 9 | . . . . 1 . 1 . . . . . . . . 5 . . . . . . 2 . . Terminal Hacks 78 | . 2 9 1 1 4 8 3 1 5 . 30 . . . 7 . . 6 . . 1 . . . Record 20 | . . . . . . . . . 4 . 11 . . . . . . 5 . . . . . . Part Schematic 13 | . . . . . . 1 . . . . 11 . . . 1 . . . . . . . . . Robot Schematic 7 | . . . . . . 2 . . . . 5 . . . . . . . . . . . . . Robot Analysis 4 | . 1 1 . . . 1 . . . . . . . . 1 . . . . . . . . . Prototype ID Bank 7 | . 1 . . . . 2 . . . . 3 . . . 1 . . . . . . . . . Open Door 6 | . . . 1 . 1 . 1 . 1 . . . . . . . . 1 . . 1 . . . Open DSF 2 | . . . . . . . . 1 . . . . . . 1 . . . . . . . . . Level Access Points 1 | . . . . . . . . . . . . . . . 1 . . . . . . . . . Branch Access Points 3 | . . 1 . 1 . 1 . . . . . . . . . . . . . . . . . . Emergency Access Points 2 | . . . . . 1 . 1 . . . . . . . . . . . . . . . . . Scanalyzer Index 1 | . . . . . . . . . . . . . . . 1 . . . . . . . . . Alert Level 1 | . . 1 . . . . . . . . . . . . . . . . . . . . . . Unreport Threat 5 | . . 4 . . . 1 . . . . . . . . . . . . . . . . . . Locate Traps 1 | . . . . . . . 1 . . . . . . . . . . . . . . . . . Hauler Manifests 2 | . . 1 . . . . . . . . . . . . 1 . . . . . . . . . Registered Components 1 | . . 1 . . . . . . . . . . . . . . . . . . . . . . Zone Layout 1 | . . . . . 1 . . . . . . . . . . . . . . . . . . . Security Stations 1 | . . . . . 1 . . . . . . . . . . . . . . . . . . . Fabricator Hacks . | . . . . . . . . . . . . . . . . . . . . . . . . . Repair Station Hacks . | . . . . . . . . . . . . . . . . . . . . . . . . . Recycling Unit Hacks . | . . . . . . . . . . . . . . . . . . . . . . . . . Scanalyzer . | . . . . . . . . . . . . . . . . . . . . . . . . . Garrison Access Hacks 5 | . . . . 1 . 1 . . . . . . . . 2 . . . . . . 1 . . Unlock Access 5 | . . . . 1 . 1 . . . . . . . . 2 . . . . . . 1 . . Unauthorized Hacks 21 | . 4 3 . 1 . 2 2 . . . . . . . 6 . 1 . . . . 2 . . Terminals 14 | . 4 3 . 1 . 1 2 . . . . . . . 3 . . . . . . . . . Botnet 10 | . 3 2 . 1 . 1 1 . . . . . . . 2 . . . . . . . . . Sabotage 2 | . . 1 . . . . . . . . . . . . 1 . . . . . . . . . Search 1 | . 1 . . . . . . . . . . . . . . . . . . . . . . . Override 1 | . . . . . . . 1 . . . . . . . . . . . . . . . . . Fabricators . | . . . . . . . . . . . . . . . . . . . . . . . . . Repair Stations . | . . . . . . . . . . . . . . . . . . . . . . . . . Recycling Units . | . . . . . . . . . . . . . . . . . . . . . . . . . Scanalyzers 7 | . . . . . . 1 . . . . . . . . 3 . 1 . . . . 2 . . Extract 7 | . . . . . . 1 . . . . . . . . 3 . 1 . . . . 2 . . Garrison Access . | . . . . . . . . . . . . . . . . . . . . . . . . . Data Cores Recovered 4 | . . . . 1 . . . . . . . . . . 2 . . . . . . 1 . . Used 1 | . . . . . . . . . . . . . . . 1 . . . . . . . . . Hacking Detections 30 | . 5 3 . 2 2 5 1 2 1 . . . 2 . 5 1 . . . . 1 . . . Full Trace Events 6 | . 1 . . . 1 . . . 1 . . . . . 2 1 . . . . . . . . Feedback Events . | . . . . . . . . . . . . . . . . . . . . . . . . . Feedback Blocked . | . . . . . . . . . . . . . . . . . . . . . . . . . Robot Schematics Acquired 7 | . . . . . . 2 . . . . 5 . . . . . . . . . . . . . Robots Built . | . . . . . . . . . . . . . . . . . . . . . . . . . Authchips . | . . . . . . . . . . . . . . . . . . . . . . . . . Time . | . . . . . . . . . . . . . . . . . . . . . . . . . Total Robot Build Rating . | . . . . . . . . . . . . . . . . . . . . . . . . . Part Schematics Acquired 46 | . . . . . . 4 . . . . 11 . . . 18 . 11 . . . . 2 . . Parts Built . | . . . . . . . . . . . . . . . . . . . . . . . . . Authchips . | . . . . . . . . . . . . . . . . . . . . . . . . . Time . | . . . . . . . . . . . . . . . . . . . . . . . . . Total Part Build Rating . | . . . . . . . . . . . . . . . . . . . . . . . . . Parts Repaired . | . . . . . . . . . . . . . . . . . . . . . . . . . Time . | . . . . . . . . . . . . . . . . . . . . . . . . . Parts Recycled . | . . . . . . . . . . . . . . . . . . . . . . . . . Recycled Matter . | . . . . . . . . . . . . . . . . . . . . . . . . . Retrieved Matter . | . . . . . . . . . . . . . . . . . . . . . . . . . Retrieved Components . | . . . . . . . . . . . . . . . . . . . . . . . . . Parts Scanalyzed . | . . . . . . . . . . . . . . . . . . . . . . . . . Part Schematics Acquired . | . . . . . . . . . . . . . . . . . . . . . . . . . Parts Damaged . | . . . . . . . . . . . . . . . . . . . . . . . . . Bothacking | -11 -10 -9 -9 -8 -8 -7 -7 -7 -7 -7 -7 -6 -6 -6 -6 -6 -6 -6 -6 -6 -5 -5 -5 -5 ------------ Run | Jun Mat Mat Min Mat Gar Fac Gar Fac Low Low Dat Pro Fac Was Fac Gar Fac Low Low Zio Pro Fac Gar Fac Used RIF Installer . | . . . . . . . . . . . . . . . . . . . . . . . . . Robots Hacked . | . . . . . . . . . . . . . . . . . . . . . . . . . Non-combat . | . . . . . . . . . . . . . . . . . . . . . . . . . Combat . | . . . . . . . . . . . . . . . . . . . . . . . . . Robot Hacks Applied . | . . . . . . . . . . . . . . . . . . . . . . . . . Relay Couplers Released 57 | . . . . . 14 . 17 . . . . . . . 4 12 2 . . . . . 8 . Machine Destruction 53 | . . . . . 14 . 17 . . . . . . . . 12 2 . . . . . 8 . Programmers 4 | . . . . . . . . . . . . . . . 4 . . . . . . . . . Fabnet Peak Effective % . | . . . . . . . . . . . . . . . . . . . . . . . . . Robots Rewired 2 | . . . . . 2 . . . . . . . . . . . . . . . . . . . Allies Hacked 1 | . . . . . . . . . . . . . . . . . . . . . . . . 1 Hacks Repelled . | . . . . . . . . . . . . . . . . . . . . . . . . . Allies | -11 -10 -9 -9 -8 -8 -7 -7 -7 -7 -7 -7 -6 -6 -6 -6 -6 -6 -6 -6 -6 -5 -5 -5 -5 -------- Run | Jun Mat Mat Min Mat Gar Fac Gar Fac Low Low Dat Pro Fac Was Fac Gar Fac Low Low Zio Pro Fac Gar Fac Total Allies 44 | . . . 1 . 3 . 2 . . . . 1 . 19 . . . . . 9 . 5 . 4 Largest Group 17 | . . . 1 . 2 1 2 1 . . . 1 . 17 . . . . . 9 . 3 . 3 Highest-Rated Group 634 | . . . 31 . 177 146 160 80 . . . 96 . 634 . . . . . 295 . 210 . 210 Highest-Rated Ally 146 | . . . 31 . 146 146 80 80 . . . 96 . 50 . . . . . 39 . 85 . 70 Zionite Dispatches 5 | . . . . . . . . . . . . . . . . . . . . . . 2 . 3 Heavy 1 | . . . . . . . . . . . . . . . . . . . . . . 1 . . Light 2 | . . . . . . . . . . . . . . . . . . . . . . 1 . 1 Recon 1 | . . . . . . . . . . . . . . . . . . . . . . . . 1 Kinetic Resupply 1 | . . . . . . . . . . . . . . . . . . . . . . . . 1 Total Orders 3 | . . . . . . . . . . . . . . . . . . . . . . . . 3 DROP 1 | . . . . . . . . . . . . . . . . . . . . . . . . 1 EXPLORE 2 | . . . . . . . . . . . . . . . . . . . . . . . . 2 Ally Attacks 126 | . . . . . 44 . 14 . . . . 3 . 52 . . . . . . . 11 . 2 Total Damage 5222 | . . . . . 1392 . 715 . . . . 139 . 2484 . . . . . . . 457 . 35 Kills 42 | . . . . . 24 . 5 . . . . 3 . 5 . . . . . . . 4 . 1 Allies Corrupted . | . . . . . . . . . . . . . . . . . . . . . . . . . Allies Melted . | . . . . . . . . . . . . . . . . . . . . . . . . . Intel | -11 -10 -9 -9 -8 -8 -7 -7 -7 -7 -7 -7 -6 -6 -6 -6 -6 -6 -6 -6 -6 -5 -5 -5 -5 ------- Run | Jun Mat Mat Min Mat Gar Fac Gar Fac Low Low Dat Pro Fac Was Fac Gar Fac Low Low Zio Pro Fac Gar Fac Robot Analysis Total 4 | . 1 1 . . . 1 . . . . . . . . 1 . . . . . . . . . Derelict Logs Recovered . | . . . . . . . . . . . . . . . . . . . . . . . . . Drone Launches 4 | . . . . . . . . . . . . . . . . . . . . . . . . 4 Drone Recoveries 4 | . . . . . . . . . . . . . . . . . . . . . . . . 4 Exploration | -11 -10 -9 -9 -8 -8 -7 -7 -7 -7 -7 -7 -6 -6 -6 -6 -6 -6 -6 -6 -6 -5 -5 -5 -5 ------------- Run | Jun Mat Mat Min Mat Gar Fac Gar Fac Low Low Dat Pro Fac Was Fac Gar Fac Low Low Zio Pro Fac Gar Fac Turns Passed 7306 | . 358 207 141 122 477 321 298 64 232 190 28 183 302 44 781 365 69 199 86 225 395 427 686 1106 Spaces Moved 11463 | 1 286 363 312 152 810 618 447 146 516 366 93 502 397 136 1479 704 114 566 302 847 796 599 324 587 Core 342 | 1 286 40 . . . . . . . . . . . . . . . . . . . . 15 . Treads 117 | . . . . . . . . . . . . . . . . . . . . . . . . 117 Legs . | . . . . . . . . . . . . . . . . . . . . . . . . . Wheels 523 | . . . . . . . . . . . . . . . . . . . . . . . 255 268 Hover 30 | . . . . . . . . . 30 . . . . . . . . . . . . . . . Flight 10451 | . . 323 312 152 810 618 447 146 486 366 93 502 397 136 1479 704 114 566 302 847 796 599 54 202 Fastest Speed 17 | 50 50 26 26 26 23 20 20 23 23 20 26 17 26 26 20 20 31 26 26 26 26 28 32 35 Average Speed 31 | 50 50 28 26 26 24 20 21 23 28 24 26 25 26 26 23 27 31 27 26 26 28 29 99 89 Slowest Speed 400 | 50 50 50 26 26 26 23 32 26 120 26 26 26 106 26 26 31 31 31 26 26 29 94 400 160 Overloaded Moves 17 | . . . . . . . . . . . . 17 . . . . . . . . . . . . Propulsion Burnouts . | . . . . . . . . . . . . . . . . . . . . . . . . . Robots Hopped 28 | . . 4 4 . 3 . 3 1 . . . . 3 . 4 1 . . . . 3 2 . . Cave-ins Triggered 2 | . . . . . . 1 . . 1 . . . . . . . . . . . . . . . Exploration Rate (%) 50 | 2 56 48 77 17 95 23 63 6 68 56 74 71 17 85 44 82 4 75 48 89 66 23 46 29 Regions Visited 24 Branch Regions 9 Pre-discovered Areas 3 | . . . . . . . . . 1 . 1 . . . . . . . . 1 . . . . Known Exits Taken 13 | . . 1 . 1 . 1 . 1 1 . . 1 . . 1 . 1 1 1 1 1 1 . . Unknown Exits Taken 5 | 1 1 . 1 . . . . . . 1 1 . . . . . . . . . . . . . Scrap Searched . | . . . . . . . . . . . . . . . . . . . . . . . . . Spaces Dug 204 | . 4 14 . 10 . 15 1 3 5 . . 6 22 1 46 4 2 . 2 1 17 26 10 15 Terrain Destroyed 1878 | . 189 14 . 66 71 343 61 3 5 9 . 15 36 1 398 77 124 . 2 1 17 335 42 69 Melee 188 | . 4 14 . 10 . 15 1 3 5 . . 3 22 1 46 2 2 . 2 1 14 19 10 14 Projectile 48 | . . . . . . . . . . . . 12 . . . 5 . . . . 3 14 11 3 AOE 1642 | . 185 . . 56 71 328 60 . . 9 . . 14 . 352 70 122 . . . . 302 21 52 Terrain Rammed . | . . . . . . . . . . . . . . . . . . . . . . . . . Walls Destroyed . | . . . . . . . . . . . . . . . . . . . . . . . . . Machines Disabled . | . . . . . . . . . . . . . . . . . . . . . . . . . Actions | -11 -10 -9 -9 -8 -8 -7 -7 -7 -7 -7 -7 -6 -6 -6 -6 -6 -6 -6 -6 -6 -5 -5 -5 -5 --------- Run | Jun Mat Mat Min Mat Gar Fac Gar Fac Low Low Dat Pro Fac Was Fac Gar Fac Low Low Zio Pro Fac Gar Fac Total 14031 | . 430 422 356 207 1030 749 580 163 589 455 95 540 550 142 1763 815 133 592 305 850 938 779 544 1004 Wait 1394 | . 84 38 39 35 132 64 44 . 52 80 . 12 88 6 142 14 6 7 1 2 123 99 83 243 Move 11387 | . 285 354 303 151 803 617 442 143 515 365 92 501 391 135 1471 700 113 565 301 846 789 595 323 587 Hop 26 | . . 4 4 . 3 . 1 1 . . . . 3 . 4 1 . . . . 3 2 . . Pick Up 17 | . 2 . 3 . . 1 . . 3 . . . . . . . . . . 1 . . 1 6 Fast Attach 12 | . 5 . . . . . . 3 1 . . . . . . . . . . . . . . 3 Attach 46 | . 2 . . 2 . . 1 . . 1 2 1 5 . . 5 1 . . . 2 5 6 13 Detach 38 | . . . . . 1 1 3 . 1 . . 3 2 . 2 6 . 1 . . 2 6 2 8 Swap 16 | . . . . . 2 . . . 5 2 1 . 1 . 1 . . . . . . . . 4 Drop 16 | . . . . . . 2 . . 5 . . 1 . . . 4 . . . . . . . 4 Fire 405 | . 21 . . 4 11 23 10 . . 3 . 10 13 . 37 40 8 . . . 1 35 102 87 Melee 573 | . 31 26 7 15 39 41 63 16 7 4 . 12 47 1 106 23 5 19 3 1 18 37 21 31 Ram . | . . . . . . . . . . . . . . . . . . . . . . . . . Kick . | . . . . . . . . . . . . . . . . . . . . . . . . . Crush . | . . . . . . . . . . . . . . . . . . . . . . . . . Escape Stasis 87 | . . . . . 25 . 16 . . . . . . . . 22 . . . . . . 6 18 Rewire 14 | . . . . . 14 . . . . . . . . . . . . . . . . . . . Trap . | . . . . . . . . . . . . . . . . . . . . . . . . . Miscellaneous . | . . . . . . . . . . . . . . . . . . . . . . . . . Route ------- -11/Junkyard -10/Materials (discovered 3 exits: *Mat x2 / [*Min]) -9/Materials (discovered 3 exits: *Mat / *Min / Sto) -9/Mines -8/Materials -8/Garrison (discovered 3 exits: *Fac x3) -7/Factory (discovered 3 exits: Low x2 / Gar) -7/Garrison (discovered 3 exits: *Fac x3) -7/Factory (discovered 2 exits: *Fac / *Low) -7/Lower Caves -7/Lower Caves (discovered 2 exits: Fac / *Dat) -7/Data Miner -6/Proximity Caves -6/Factory (discovered 2 exits: Fac x2) -6/Waste -6/Factory (discovered 7 exits: *Fac x4 / *Low / Gar / Gar) -6/Garrison (discovered 3 exits: *Fac x3) -6/Factory -6/Lower Caves -6/Lower Caves (discovered 2 exits: *Fac / *Zio) -6/Zion -5/Proximity Caves -5/Factory (discovered 4 exits: *Fac x3 / Gar) -5/Garrison -5/Factory (discovered 1 exit: *Fac) History --------- Turn | Location | Event 1 | -11/Junkyard | Discovered new exit (range 0) 1 | -11/Junkyard | Entered Materials 143 | -10/Materials | Destroyed 8 combat bots 241 | -10/Materials | Discovered new exit (range 14) 242 | -10/Materials | Discovered new exit (range 12) 301 | -10/Materials | Build established: Mutant 331 | -10/Materials | Core integrity fell below 50% 354 | -10/Materials | Discovered new exit (range 7) 359 | -10/Materials | Entered another Materials area 359 | -9/Materials | Evolved 2 slots: Propulsion x2 387 | -9/Materials | Central database locked down 387 | -9/Materials | Identified exit to Mines 387 | -9/Materials | Identified exit to Storage 546 | -9/Materials | Discovered new exit (range 11) 566 | -9/Materials | Entered Mines 569 | -9/Mines | Received a Mining Laser from a helpful Derelict 579 | -9/Mines | Found a damaged Exp. Sensor Array with a note attached 579 | -9/Mines | Found Prototype Device 669 | -9/Mines | Received a Rocket Launcher from a helpful Derelict 682 | -9/Mines | Build established: Hacker-Sprinter 706 | -9/Mines | Discovered new exit (range 5) 707 | -9/Mines | Entered Materials 707 | -8/Materials | Evolved 2 slots: Propulsion x1, Utility x1 707 | -8/Materials | Identified Exp. Sensor Array 805 | -8/Materials | Identified exit to Garrison 829 | -8/Materials | Entered Garrison 838 | -8/Garrison | Triggered checkpoint 851 | -8/Garrison | Garrison Relay disabled 940 | -8/Garrison | Triggered checkpoint 952 | -8/Garrison | Discovered new exit (range 10) 960 | -8/Garrison | Triggered checkpoint 961 | -8/Garrison | Garrison Relay disabled 990 | -8/Garrison | Rescued HV-R5K 991 | -8/Garrison | Triggered checkpoint 1061 | -8/Garrison | Garrison Relay disabled 1124 | -8/Garrison | Triggered checkpoint 1152 | -8/Garrison | Discovered new exit (range 12) 1168 | -8/Garrison | Triggered checkpoint 1186 | -8/Garrison | Learned Factory security intel 1186 | -8/Garrison | Discovered new exit (range 14) 1306 | -8/Garrison | Entered Factory 1306 | -7/Factory | Accompanied by 1 ally (HV-R5K) 1306 | -7/Factory | Evolved 2 slots: Propulsion x1, Utility x1 1409 | -7/Factory | Destroyed HV-R5K 1414 | -7/Factory | Garrison activated, responded to threat 1472 | -7/Factory | Identified exit to Lower Caves 1488 | -7/Factory | Identified exit to Garrison 1576 | -7/Factory | Crushed by falling debris 1627 | -7/Factory | Entered Garrison 1679 | -7/Garrison | Identified exit to Factory 1686 | -7/Garrison | Spotted B-75 Beast 1686 | -7/Garrison | Spotted B-75 Beast 1761 | -7/Garrison | Spotted B-75 Beast 1768 | -7/Garrison | Found embedded Infiltrators 1796 | -7/Garrison | Triggered checkpoint 1806 | -7/Garrison | Garrison Relay disabled 1848 | -7/Garrison | Triggered checkpoint 1851 | -7/Garrison | Triggered checkpoint 1854 | -7/Garrison | Garrison Relay disabled 1876 | -7/Garrison | Core integrity fell below 50% 1925 | -7/Garrison | Entered Factory 1925 | -7/Factory | Accompanied by 1 ally 1930 | -7/Factory | Lost 6 parts (1p4n1w) 1945 | -7/Factory | Discovered new exit (range 4) 1988 | -7/Factory | Discovered exit to Lower Caves (range 5) 1989 | -7/Factory | Entered Lower Caves 1994 | -7/Lower Caves | Attracted the attention of an 0b10 checkpoint 2009 | -7/Lower Caves | Met a Warlord Commander 2010 | -7/Lower Caves | Learned location of Warlord (-4) 2011 | -7/Lower Caves | Found Encrypted Comm Array 2122 | -7/Lower Caves | Found 1C-UTU's Sword "Choppy" 2181 | -7/Lower Caves | Discovered new exit (range 14) 2184 | -7/Lower Caves | Identified exit to Lower Caves 2194 | -7/Lower Caves | Crushed by falling debris 2221 | -7/Lower Caves | Entered another Lower Caves area 2222 | -7/Lower Caves | Identified exit to Factory 2247 | -7/Lower Caves | Core integrity fell below 20% 2290 | -7/Lower Caves | Lost 4 parts (1p2n1u) 2408 | -7/Lower Caves | Discovered new exit (range 6) 2411 | -7/Lower Caves | Entered Data Miner 2411 | -7/Data Miner | Discovered new exit (range 6) 2416 | -7/Data Miner | Met Data Miner 2423 | -7/Data Miner | Learned location of Section 7 (-2) 2423 | -7/Data Miner | Acquired the access code to Warlord's prototype stash 2426 | -7/Data Miner | Received God Mode back door access code from Data Miner 2439 | -7/Data Miner | Entered Proximity Caves 2471 | -6/Proximity Caves | Escorted by Enhanced Grunt 2513 | -6/Proximity Caves | Spotted B-75 Beast 2585 | -6/Proximity Caves | Build established: Sprinter 2609 | -6/Proximity Caves | Attracted the attention of an 0b10 checkpoint 2622 | -6/Proximity Caves | Entered Factory 2622 | -6/Factory | Evolved 2 slots: Utility x2 2623 | -6/Factory | Identified exit to Factory 2924 | -6/Factory | Manually triggered Chute Trap 2924 | -6/Factory | Sucked down chute 2924 | -6/Factory | Entered Waste 2927 | -6/Waste | Spotted C-40 Crusher 2937 | -6/Waste | Spotted C-40 Crusher 2938 | -6/Waste | Spotted C-40 Crusher 2942 | -6/Waste | Warlord forces began an assault 2952 | -6/Waste | Allies destroyed C-40 Crusher 2956 | -6/Waste | Spotted C-40 Crusher 2959 | -6/Waste | Spotted C-40 Crusher 2960 | -6/Waste | Spotted C-40 Crusher 2965 | -6/Waste | Discovered new exit (range 10) 2967 | -6/Waste | Identified exit to Factory 2968 | -6/Waste | Entered Factory 2975 | -6/Factory | Lost 3 parts (2u1w) 2984 | -6/Factory | Identified exit to DSF 3069 | -6/Factory | Identified exit to Garrison 3094 | -6/Factory | Incoming investigation squad redirected 3200 | -6/Factory | Discovered new exit (range 8) 3202 | -6/Factory | Identified exit to Lower Caves 3356 | -6/Factory | Build established: Hacker-Sprinter 3382 | -6/Factory | Spotted B-75 Beast 3668 | -6/Factory | First assault squad dispatched 3696 | -6/Factory | Incoming investigation squad redirected 3749 | -6/Factory | Identified exit to Garrison 3749 | -6/Factory | Entered Garrison 3770 | -6/Garrison | Triggered checkpoint 3780 | -6/Garrison | Triggered checkpoint 3787 | -6/Garrison | Discovered new exit (range 15) 3876 | -6/Garrison | Lost 8 parts (2p2n3u1w) 3881 | -6/Garrison | Core integrity fell below 50% 3910 | -6/Garrison | Triggered checkpoint 3923 | -6/Garrison | Phase Generator disabled 3928 | -6/Garrison | Destroyed 13 combat bots 3971 | -6/Garrison | Garrison Relay disabled 3973 | -6/Garrison | Garrison Relay disabled 3986 | -6/Garrison | Discovered new exit (range 10) 4018 | -6/Garrison | Triggered checkpoint 4048 | -6/Garrison | Garrison Relay disabled 4054 | -6/Garrison | Triggered checkpoint 4058 | -6/Garrison | Discovered new exit (range 10) 4061 | -6/Garrison | Attempted to access garrison exit controls, blocked by remote lockdown 4114 | -6/Garrison | Entered Factory 4138 | -6/Factory | Discovered exit to Lower Caves (range 8) 4183 | -6/Factory | Entered Lower Caves 4209 | -6/Lower Caves | Build established: Sprinter 4315 | -6/Lower Caves | Encountered a Warlord checkpoint 4338 | -6/Lower Caves | Learned Armory security intel 4364 | -6/Lower Caves | Discovered new exit (range 8) 4366 | -6/Lower Caves | Identified exit to Lower Caves 4382 | -6/Lower Caves | Entered another Lower Caves area 4407 | -6/Lower Caves | Spotted B-75 Beast 4423 | -6/Lower Caves | Encountered a Warlord checkpoint 4466 | -6/Lower Caves | Discovered new exit (range 5) 4467 | -6/Lower Caves | Identified exit to Zion 4468 | -6/Lower Caves | Entered Zion 4474 | -6/Zion | Given the Hacking Drone Bay 4474 | -6/Zion | Found Prototype Device 4483 | -6/Zion | Discovered new exit (range 9) 4485 | -6/Zion | Identified exit to Proximity Caves 4495 | -6/Zion | System corruption cleaned by Quarantine Array 4507 | -6/Zion | Learned Factory fabricator intel 4514 | -6/Zion | Received a hallucinogenic algorithm 4589 | -6/Zion | Gained Derelict followers 4634 | -6/Zion | Imprinted 4636 | -6/Zion | Declared Zion's savior 4693 | -6/Zion | Entered Proximity Caves 4831 | -5/Proximity Caves | Acquired the password to a Derelict Tinkerer's latest research 4917 | -5/Proximity Caves | Caught by Unaware searching for contraband prototypes 4967 | -5/Proximity Caves | Attracted the attention of an 0b10 outpost 4987 | -5/Proximity Caves | Caught by Unaware searching for contraband prototypes 4989 | -5/Proximity Caves | Attracted the attention of an 0b10 checkpoint 5038 | -5/Proximity Caves | Snuck into a huge 0b10 base via the rear entrance 5083 | -5/Proximity Caves | Spotted B-75 Beast 5088 | -5/Proximity Caves | Entered Factory 5088 | -5/Factory | Evolved 2 slots: Power x1, Utility x1 5089 | -5/Factory | Identified exit to Factory 5090 | -5/Factory | Loaded intel: 6 fabricator locations 5135 | -5/Factory | Zion Light squad teleported in 5261 | -5/Factory | Discovered exit to Factory (range 4) 5325 | -5/Factory | Incoming investigation squad redirected 5413 | -5/Factory | Lost 3 parts (1p2u) 5438 | -5/Factory | Incoming investigation squad redirected 5494 | -5/Factory | Zion Heavy squad teleported in 5515 | -5/Factory | Identified exit to Garrison 5515 | -5/Factory | Entered Garrison 5546 | -5/Garrison | Triggered checkpoint 5621 | -5/Garrison | Core integrity fell below 50% 5641 | -5/Garrison | Lost 5 parts (1p2n1u1w) 5726 | -5/Garrison | Triggered checkpoint 5780 | -5/Garrison | Garrison Relay disabled 5850 | -5/Garrison | Spotted B-75 Beast 5881 | -5/Garrison | Lost 5 parts (1n1u3w) 5890 | -5/Garrison | Build established: Mutant 5999 | -5/Garrison | Triggered checkpoint 6028 | -5/Garrison | Triggered checkpoint 6076 | -5/Garrison | Triggered checkpoint 6146 | -5/Garrison | Garrison Relay disabled 6194 | -5/Garrison | Discovered new exit (range 8) 6201 | -5/Garrison | Entered Factory 6279 | -5/Factory | Zion Recon squad teleported in 6338 | -5/Factory | Zion Kinetic Resupply teleported in 6509 | -5/Factory | Discovered exit to Factory (range 12) 7085 | -5/Factory | Cargo convoy interrupted 7087 | -5/Factory | Found Imp. Powered Armor 7090 | -5/Factory | System corruption reached 10% 7101 | -5/Factory | First assault squad dispatched 7110 | -5/Factory | Incoming assault squad redirected 7123 | -5/Factory | Incoming assault squad redirected 7131 | -5/Factory | Incoming assault squad redirected 7135 | -5/Factory | Core integrity fell below 20% 7158 | -5/Factory | Zion Light squad teleported in 7183 | -5/Factory | Lost 8 parts (1p3n2u2w) 7219 | -5/Factory | Incoming assault squad redirected 7280 | -5/Factory | Identified Hacking Drone Bay 7307 | -5/Factory | Destroyed by Y-64 Sentinel with Wave Gun Last Messages --------------- 07293_ Field strength at 50. 07294_ Field strength at 45. 07295_ W-25 Informer sends out distress signal. 07295_ K-01 Serf collects debris. 07295_ Field strength at 40. 07296_ Field strength at 35. 07297_ Field strength at 30. 07298_ Field strength at 25. 07299_ K-01 Serf collects debris. 07299_ Field strength at 20. 07300_ W-25 Informer suffers critical hit (Destroy). 07300_ Destroyed Imp. Hover Unit. 07300_ W-25 Informer destroyed. 07301_ K-01 Serf collects debris. 07302_ Field strength at 15. 07303_ Field strength at 10. 07304_ Field strength at 5. 07304_ Stasis field depleted. 07305_ K-01 Serf collects debris. 07307_ System corrupted: Energy discharge (-59). Map ----- +----------------------------------------------------+ | ??????# #???# # | | ??????######/######## ^ # | | ??????????#" # | | ??????????##"############### # | | ???????????###?????????????# #######+#### | | ????????????????????????#### | | ????????????????????????#""" % | | ????????????????????????#"F" "" | | ????????????????????????#" "" | | ????????????????????????#""" "T | | ????????????????????????#"" """ """""" ### | | ????????????????????????#### "" """""" # | | ???????????????????????????# """""" # | | ???????????????????????????# """""" # | | ???????????????????????????#" # " | | ???????????????????????????#% # " | | ???????????????????????????# # | | ???????????????????????????# ############### | | ????????????????????######## #?????????????# " | | ????????????????????# #?????????????# " | | ????????????????????# #?????????????# | | ????????????????????# #?????????????# | | ????????????????????# #?????????????# | | ????????????????????# #?????????????#/# | | ????????????????????# ########?????????????# # | | ????????????????????#^^^k@; #???????# # | | ????????????????????# %# #???????# | | ????????????????????# +?? #???????### | | ????????????????????# #???? #?????????? | | ????????????????????# u#?????? #?????????? | | ????????????????????# #???????? ??????????? | | ????????????????????# #?????????? ??????????? | | ????????????????????# #??????????????????????? | | ????????????????????#Y #??????????????????????? | | ????????????????????+ ???????????????????????? | | ????????????????????# ???????????????????????? | | ????????????????????# ???????????????????????? | | ????????????????????# ???????????????????????? | | ????????????????????#u ???????????????????????? | | ????????????????????? ???????????????????????? | | ??????????????????????? ???????????????????????? | | ?????????????????????????????????????????????????? | | ?????????????????????????????????????????????????? | | ?????????????????????????????????????????????????? | | ?????????????????????????????????????????????????? | | ??????????????????????????????????????????????+### | | ?????????????????????????????????????????????? | | ?????????????????????????????????????????????? | | ?????????????????????????????????????????????#"" | | ?????????????????????????????????????????????#"" | +----------------------------------------------------+ Best States ------------- Heat Dissipation 40 Energy Generation 21 Energy Capacity 500 Matter Stores 300 Matter Capacity 300 Sight Range 16 Robot Scan Range 20 Terrain Scan Density 10 Armor Coverage 1600 Propulsion Shielding 66 Melee Speed Boost 20 Evasion (%) 73 Targeting Accuracy 25 Melee Accuracy 16 Recoil Reduction 12 Kinecelleration 40 Offensive Hacking 22 Defensive Hacking 24 Item Schematics ----------------- Imp. Particle Charger | -7/Factory | Hacked Trap Scanner | -7/Factory | Extracted Lyr. Light Armor Plating | -7/Factory | Extracted Imp. Ion Engine | -7/Factory | Extracted Combat Drone Bay | -7/Data Miner | Free Cld. Cesium-ion Thruster | -7/Data Miner | Free Gravity Neutralizer | -7/Data Miner | Free Lgt. Regenerative Plating | -7/Data Miner | Free Imp. Heavy Machine Gun | -7/Data Miner | Free Gyrokinetic Inverter | -7/Data Miner | Free Hyp. Coil Gun | -7/Data Miner | Free Imp. Cryofiber Web | -7/Data Miner | Free Imp. Dynamic Insulation System | -7/Data Miner | Free Neutrino Core | -7/Data Miner | Free Adv. Power Amplifier | -7/Data Miner | Free Xenon Bombardment Thruster | -6/Factory | Extracted Impulse Thruster | -6/Factory | Hacked Carbon-fiber Leg | -6/Factory | Extracted Imp. Signal Interpreter | -6/Factory | Extracted Terrain Scan Processor | -6/Factory | Extracted Hvy. Flak Cannon | -6/Factory | Extracted Hardlight Generator | -6/Factory | Extracted Coil Gun | -6/Factory | Extracted Imp. Medium Armor Plating | -6/Factory | Extracted Gauss Rifle | -6/Factory | Extracted Force Field | -6/Factory | Extracted Arm. Leg | -6/Factory | Extracted Adv. Melee Analysis Suite | -6/Factory | Extracted Imp. Shield Generator | -6/Factory | Extracted Core Analyzer | -6/Factory | Extracted Hcp. Matter Pod | -6/Factory | Extracted Lgt. Deuterium Engine | -6/Factory | Extracted Gravmag System | -6/Factory | Extracted Missile Launcher | -6/Factory | Extracted Hvy. Plasma Cannon | -6/Factory | Extracted Hvy. Mace | -6/Factory | Extracted Lrn. Tractor Beam | -6/Factory | Extracted Matter Compressor | -6/Factory | Extracted Deuterium Engine | -6/Factory | Extracted Lgt. Fission Core | -6/Factory | Extracted Med. Treads | -6/Factory | Extracted Hvy. Flail | -6/Factory | Extracted Imp. VSS Leg | -6/Factory | Extracted Lyr. Medium Armor Plating | -6/Factory | Extracted Adv. Heat Sink | -5/Factory | Extracted Enh. Optical Array | -5/Factory | Extracted Robot Schematics ------------------ M-28 Smith | -7/Factory | Hacked B-48 Gladiator | -7/Factory | Hacked M-22 Extractor | -7/Data Miner | Free L-41 Fighter | -7/Data Miner | Free W-25 Informer | -7/Data Miner | Free A-15 Conveyor | -7/Data Miner | Free Y-54 Guardian | -7/Data Miner | Free Fabricated ------------ Nothing Alien Tech Used ----------------- None Achievements -------------- None Challenges ------------ None Cogshop Purchases (87) ------------------------ Flail (629) Mni. Grenade Launcher (1049) Hacking Suite (1072) System Shield (1072) Imp. Propulsion Shielding (828) Reaction Control System (635) Imp. VTOL Module (1247) Imp. VTOL Module (1247) Imp. VTOL Module (1247) Imp. VTOL Module (1247) Lgt. Deuterium Engine (815) Lgt. Deuterium Engine (877) Mak. Spear (1031) Prc. Grenade Launcher (2761) Imp. VTOL Module (1394) Imp. System Shield (1264) Mak. Hacking Suite (1137) Imp. System Shield (1264) Mak. Hacking Suite (1137) Cld. VTOL Module (1728) Cold Fusion Reactor (851) Adv. Melee Analysis Suite (760) Adv. Melee Analysis Suite (889) Mak. Sword (1190) Microactuators (593) Cld. Cesium-ion Thruster (1805) Cld. Cesium-ion Thruster (1805) Cld. Cesium-ion Thruster (1805) Cld. Cesium-ion Thruster (1805) F-cell Engine (994) Adv. Signal Interpreter (946) Great Axe (Loot Box) Hyp. Gauss Cannon (Loot Box) Shock Bomb Launcher (Loot Box) Imp. Datajack (Loot Box) Antigrav System (Loot Box) 1C-UTU's Sword "Choppy" (Loot Box) Cesium-ion Thruster (1816) Nuclear Core (710) Tri-rail Accelerator (988) Adv. Signal Interpreter (1021) Propulsion Shielding (548) Mak. System Shield (1304) Adv. Hacking Suite (1595) Adv. Sensor Array (947) Imp. EM Pulse Cannon (903) Imp. Cesium-ion Thruster (1340) Imp. Cesium-ion Thruster (1340) Imp. Cesium-ion Thruster (1340) Neutrino Core (1071) Adv. Melee Analysis Suite (1181) Xenon Bombardment Thruster (1843) Imp. Propulsion Shielding (794) Neutrino Core (1162) Lyr. Medium Armor Plating (993) Mak. Flight Unit (1873) Adv. Targeting Computer (1023) Targeting Computer (767) Lgt. Angular Momentum Engine (808) Stasis Canceller (924) Imp. Kinecellerator (1016) Tesla Rifle (887) Adv. Sensor Array (1165) Adv. Signal Interpreter (1344) Cld. VTOL Module (1374) F-cell Engine (883) Tesla Rifle (825) Field Propulsion Array (1663) Field Propulsion Array (1663) Exp. Targeting Computer (2149) Antimatter Reactor (994) Enh. Coil Gun (1125) Com. Wheel (653) Smartbomb Launcher (664) Arm. Huge Wheel (934) Hyp. Mass Driver (1054) Cld. Phase Gun (1164) Arm. Huge Wheel (953) Spk. Heavy Treads (690) Spk. Heavy Treads (690) Spk. Heavy Treads (690) Angular Momentum Engine (660) Imp. Powered Armor (898) Imp. Powered Armor (898) Lrn. Tractor Beam (811) Adv. Targeting Computer (886) Mak. Power Source (770) Game ------ Seed ThrusterMagneticMaul Manual? 0 Play Time 02:37:55 Cumulative 461.9 hours Start 2023.03.13 @ 11:23:01 End 2023.03.13 @ 17:42:22 Sessions 1 Manual Loads 0 Difficulty Rogue Special Mode AFD2019/Pay2Buy Game No. 514 Rogue 514 Adventurer 0 Explorer 0 Win Type - Total 1 Types 1/0/0/0/0/0/0/0/0 Lore% 60 Gallery% 80 Achievement% 65 Wizard Run 0 Options --------- ASCII 0 Keyboard 0 Movement Mouse Keybinds 0 Fullscreen 2 Font 24/Smallcaps Map View 76x50 Tactical HUD 1 Map Filters NONE Filters NONE Steam 1 RUN: 3c93a14e-4817-4da5-8679-3780f8326637